bitfinex/quotes_SOLUSD_20250403
["timestamp","ask_amount","ask_price","bid_price","bid_amount"]
[1743701929399,43.52750283,114.24,114.21,35.54504886]
[1743701929616,43.52750283,114.23,114.21,8.14]
[1743701930124,43.52750283,114.24,114.21,8.14]
[1743701930621,144.753,114.25,114.21,16.8955]
[1743701930801,43.52750283,114.23,114.21,16.8955]
[1743701931604,43.52750283,114.24,114.21,16.8955]
[1743701931806,136.0,114.25,114.21,16.8955]
[1743701932006,136.0,114.25,114.21,60.42300283]
[1743701932236,136.0,114.25,114.21,16.8955]
[1743701932237,43.52750283,114.24,114.21,16.8955]
[1743701934836,179.52750283,114.25,114.21,16.8955]
[1743701935421,43.52750283,114.25,114.21,16.8955]
[1743701936808,8.7518,114.27,114.22,18.64964886]
[1743701937010,136.0,114.28,114.24,18.64964886]
[1743701937011,43.52750283,114.28,114.24,18.64964886]
[1743701937323,43.52750283,114.29,114.26,27.40124886]
[1743701937520,8.7485,114.31,114.26,27.40124886]
[1743701937725,43.52750283,114.29,114.26,27.40124886]
[1743701939220,43.52750283,114.3,114.26,27.40124886]
[1743701939436,136.0,114.32,114.26,70.92875169]
[1743701939744,136.0,114.32,114.28,18.64964886]
[1743701940037,43.52750283,114.32,114.29,8.18]
[1743701940632,43.52750283,114.31,114.29,8.18]
[1743701941017,43.52750283,114.31,114.29,16.9296]
[1743701941221,8.7469,114.33,114.29,8.18]
[1743701941533,43.52750283,114.3,114.29,8.18]
[1743701942128,43.52750283,114.31,114.29,8.18]
[1743701942736,43.52750283,114.3,114.29,8.18]
[1743701943117,43.52750283,114.3,114.26,27.40134886]
[1743701943314,40.52750283,114.28,114.25,18.5495]
[1743701943518,8.7481,114.31,114.25,18.5495]
[1743701943519,43.52750283,114.27,114.25,18.5495]
[1743701944125,43.52750283,114.26,114.25,8.16]
[1743701944325,43.52750283,114.26,114.24,8.7529]
[1743701944732,43.52750283,114.26,114.23,35.56364886]
[1743701944926,43.52750283,114.25,114.23,8.16]
[1743701945131,43.52750283,114.24,114.23,8.7542]
[1743701945545,43.52750283,114.25,114.22,18.4752]
[1743701945747,43.52750283,114.24,114.22,18.4752]
[1743701946427,43.52750283,114.24,114.22,8.14]
[1743701946745,43.52750283,114.23,114.19,10.3263]
[1743701946922,43.52750283,114.21,114.19,10.3263]
[1743701947424,43.52750283,114.22,114.19,10.3263]
[1743701947623,136.0,114.24,114.2,18.64964886]
[1743701947825,43.52750283,114.23,114.2,18.64964886]
[1743701948225,43.52750283,114.22,114.2,18.64964886]
[1743701948439,43.52750283,114.22,114.21,8.7558]
[1743701949628,43.52750283,114.22,114.2,27.40574886]
[1743701950036,142.1604,114.26,114.2,49.29714886]
[1743701950252,43.52750283,114.24,114.2,49.29714886]
[1743701950551,43.52750283,114.23,114.2,49.29714886]
[1743701951548,43.52750283,114.26,114.22,18.64964886]
[1743701952046,43.52750283,114.27,114.22,70.33715169]
[1743701952237,136.0,114.28,114.22,70.33715169]
[1743701952753,43.52750283,114.27,114.23,30.6398]
[1743701952960,43.52750283,114.27,114.24,18.64964886]
[1743701953134,43.52750283,114.28,114.24,18.64964886]
[1743701953661,43.52750283,114.26,114.23,30.6398]
[1743701953953,8.7496,114.29,114.23,30.6398]
[1743701954128,43.52750283,114.27,114.23,30.6398]
[1743701955132,43.52750283,114.28,114.24,18.64964886]
[1743701955753,136.0,114.29,114.24,63.73785169]
[1743701955955,179.52750283,114.29,114.24,63.73785169]
[1743701956330,136.0,114.29,114.24,63.73785169]
[1743701956743,43.52750283,114.29,114.26,18.64964886]
[1743701956946,43.52750283,114.29,114.26,26.78964886]
[1743701957637,8.7482,114.31,114.27,8.7512]
[1743701957841,43.52750283,114.32,114.27,52.27870283]
[1743701958042,43.52750283,114.32,114.27,74.15670283]
[1743701958856,8.7458,114.34,114.27,74.15670283]
[1743701959157,43.52750283,114.32,114.27,74.15670283]
[1743701959355,43.52750283,114.31,114.28,18.64964886]
[1743701959650,43.52750283,114.31,114.29,8.7496]
[1743701959853,43.52750283,114.3,114.27,27.40084886]
[1743701960057,43.52750283,114.29,114.27,8.7512]
[1743701960255,43.52750283,114.3,114.27,8.7512]
[1743701960442,43.52750283,114.29,114.27,8.7512]
[1743701961045,144.7474,114.32,114.27,8.7512]
[1743701961246,43.52750283,114.3,114.27,8.7512]
[1743701961837,43.52750283,114.29,114.27,8.7512]
[1743701962257,8.7482,114.31,114.26,8.7515]
[1743701962258,43.52750283,114.28,114.26,8.7515]
[1743701962559,43.52750283,114.27,114.25,336.4923]
[1743701963757,43.52750283,114.27,114.24,18.4539]
[1743701964056,43.52750283,114.25,114.24,8.7532]
[1743701964436,43.52750283,114.25,114.23,8.7538]
[1743701966176,43.52750283,114.26,114.23,8.7538]
[1743701966552,43.52750283,114.25,114.23,8.7538]
[1743701968278,43.52750283,114.26,114.23,8.7538]
[1743701968940,43.52750283,114.26,114.23,30.6394]
[1743701969142,136.0,114.3,114.24,62.17715169]
[1743701969342,43.52750283,114.29,114.24,62.17715169]
[1743701969550,43.52750283,114.29,114.25,43.52750283]
[1743701969746,27.15816362,114.29,114.25,27.15816362]
[1743701969945,27.15816362,114.29,114.26,18.64964886]
[1743701970357,14.8894,114.32,114.26,18.64964886]
[1743701970557,27.15816362,114.29,114.26,18.64964886]
[1743701971381,27.15816362,114.3,114.26,18.64964886]
[1743701971569,27.15816362,114.3,114.27,8.7512]
[1743701971864,43.45175842,114.3,114.27,8.7512]
[1743701973646,43.45175842,114.31,114.27,8.7512]
[1743701973846,43.45175842,114.3,114.27,8.7512]
[1743701974269,150.8892,114.32,114.27,8.7512]
[1743701974455,43.45175842,114.29,114.27,8.7512]
[1743701975568,43.45175842,114.3,114.23,21.8846]
[1743701975874,43.45175842,114.26,114.22,35.50464886]
[1743701976366,43.45175842,114.26,114.22,57.39214886]
[1743701976674,43.45175842,114.25,114.22,35.50464886]
[1743701977580,136.0,114.29,114.22,100.84390728]
[1743701977783,43.45175842,114.27,114.22,100.84390728]
[1743701979583,43.45175842,114.27,114.22,57.39214886]
[1743701979877,43.45175842,114.27,114.22,100.84390728]
[1743701980569,43.45175842,114.26,114.22,57.39214886]
[1743701981079,43.45175842,114.27,114.22,100.84390728]
[1743701981661,6.1417,114.32,114.25,18.64964886]
[1743701981859,43.45175842,114.28,114.25,18.64964886]
[1743701982452,43.45175842,114.28,114.23,62.38573042]
[1743701982668,43.45175842,114.28,114.24,43.45175842]
[1743701982863,43.45175842,114.28,114.26,18.64964886]
[1743701983265,28.24216157,114.35,114.26,18.64964886]
[1743701983266,8.7445,114.36,114.27,10.06538471]
[1743701983466,43.45175842,114.35,114.31,18.64964886]
[1743701983676,43.45175842,114.33,114.31,8.1]
[1743701983902,43.45175842,114.32,114.31,8.1]
[1743701984059,43.45175842,114.32,114.29,8.1]
[1743701984390,43.45175842,114.3,114.29,8.1]
[1743701985289,43.45175842,114.3,114.29,16.8496]
[1743701987077,43.45175842,114.3,114.29,8.1]
[1743701987282,43.45175842,114.3,114.29,16.8496]
[1743701987454,43.45175842,114.3,114.27,8.7509]
[1743701987655,43.45175842,114.28,114.27,8.7509]
[1743701989480,43.45175842,114.28,114.26,16.8515]
[1743701989699,43.45175842,114.27,114.26,8.1]
[1743701990204,43.45175842,114.27,114.24,18.64964886]
[1743701990417,43.45175842,114.26,114.24,18.64964886]
[1743701991001,43.45175842,114.27,114.24,18.64964886]
[1743701991221,136.0,114.31,114.24,27.40304886]
[1743701991397,43.45175842,114.28,114.24,27.40304886]
[1743701991801,43.45175842,114.28,114.25,18.64964886]
[1743701992113,43.45175842,114.29,114.25,18.64964886]
[1743701992314,43.45175842,114.28,114.25,18.64964886]
[1743701993309,43.45175842,114.28,114.23,16.8539]
[1743701993484,43.45175842,114.27,114.24,18.64964886]
[1743701993684,27.16897379,114.27,114.24,18.64964886]
[1743701993993,27.16897379,114.27,114.23,8.1]
[1743701994501,27.16897379,114.24,114.21,9.6767]
[1743701994886,27.16897379,114.25,114.21,9.6767]
[1743701995090,27.16897379,114.24,114.21,9.6767]
[1743701996013,27.16897379,114.23,114.21,8.1]
[1743701996715,27.16897379,114.22,114.2,335.78]
[1743701997310,27.16897379,114.21,114.2,327.68]
[1743701998306,27.16897379,114.22,114.2,327.68]
[1743702000296,27.16897379,114.21,114.2,327.68]
[1743702000509,27.16897379,114.21,114.17,16.8585]
[1743702000713,27.16897379,114.21,114.17,44.02747379]
[1743702000912,27.16897379,114.21,114.18,18.64964886]
[1743702001714,27.16897379,114.21,114.19,8.7573]
[1743702002200,136.0,114.23,114.18,27.40734886]
[1743702002397,136.0,114.23,114.19,27.16897379]
[1743702002604,163.16897379,114.23,114.19,27.16897379]
[1743702002805,136.0,114.23,114.2,18.64964886]
[1743702003012,27.16897379,114.24,114.2,45.81862265]
[1743702003214,27.16897379,114.26,114.21,35.26897379]
[1743702003711,27.16897379,114.26,114.23,8.7542]
[1743702003910,27.16897379,114.27,114.24,18.64964886]
[1743702004297,34.72877379,114.3,114.24,45.81862265]
[1743702004298,7.5598,114.3,114.24,45.81862265]
[1743702004516,27.16897379,114.29,114.25,35.26897379]
[1743702004810,27.16897379,114.3,114.26,45.81862265]
[1743702005015,163.16897379,114.31,114.26,45.81862265]
[1743702005191,27.16897379,114.31,114.27,27.16897379]
[1743702005397,27.16897379,114.3,114.26,18.64964886]
[1743702005798,27.16897379,114.3,114.26,27.40084886]
[1743702006009,43.45216235,114.3,114.26,27.40084886]
[1743702006894,43.45216235,114.3,114.26,8.7512]
[1743702007099,43.45216235,114.3,114.26,27.40084886]
[1743702007313,43.45216235,114.3,114.26,49.28074886]
[1743702007511,43.45216235,114.29,114.26,8.7512]
[1743702008722,43.45216235,114.27,114.25,8.7523]
[1743702009905,43.45216235,114.27,114.24,8.7535]
[1743702010333,43.45216235,114.28,114.24,27.40314886]
[1743702010834,43.45216235,114.28,114.24,49.28684886]
[1743702011022,43.45216235,114.27,114.24,27.40314886]
[1743702011230,43.45216235,114.26,114.24,8.7535]
[1743702011402,43.45216235,114.26,114.23,16.8539]
[1743702011726,136.0,114.29,114.24,18.64964886]
[1743702012021,43.45216235,114.29,114.25,8.7527]
[1743702012196,43.45216235,114.28,114.25,8.7527]
[1743702015220,43.45216235,114.29,114.25,30.6345]
[1743702015443,43.45216235,114.31,114.26,62.10181121]
[1743702015624,43.45216235,114.31,114.27,8.1]
[1743702016009,43.45216235,114.3,114.27,8.1]
[1743702016335,43.45216235,114.3,114.28,8.7504]
[1743702016704,43.45216235,114.31,114.28,8.7504]
[1743702016918,43.45216235,114.3,114.28,8.7504]
[1743702017121,43.45216235,114.29,114.27,16.8508]
[1743702017321,43.45216235,114.28,114.27,16.8508]
[1743702018412,162.2614,114.33,114.27,16.8508]
[1743702018612,43.45216235,114.29,114.27,16.8508]
[1743702019414,43.45216235,114.3,114.27,16.8508]
[1743702019930,2.43655118,114.32,114.28,18.64964886]
[1743702020129,45.88871353,114.32,114.28,18.64964886]
[1743702020423,136.0,114.34,114.29,30.6237]
[1743702020627,43.45216235,114.34,114.3,18.64964886]
[1743702021009,43.45216235,114.35,114.31,8.1]
[1743702021935,43.45216235,114.35,114.32,18.64964886]
[1743702022230,136.0,114.39,114.32,18.64964886]
[1743702022431,43.45216235,114.38,114.33,43.45216235]
[1743702022616,43.45216235,114.36,114.33,8.7466]
[1743702023012,136.0,114.38,114.33,8.7466]
[1743702023013,43.45216235,114.35,114.33,8.7466]
[1743702023230,43.45216235,114.34,114.32,8.7473]
[1743702023614,147.17765982,114.38,114.32,8.7473]
[1743702023839,43.45216235,114.34,114.32,8.7473]
[1743702024352,43.45216235,114.35,114.32,8.7473]
[1743702027143,43.45216235,114.35,114.31,16.8477]
[1743702027308,43.45216235,114.34,114.31,16.8477]
[1743702027512,43.45216235,114.35,114.31,38.718]
[1743702027738,136.0,114.37,114.31,38.718]
[1743702027943,27.1338871,114.35,114.31,38.718]
[1743702028331,27.1338871,114.34,114.31,8.7477]
[1743702028637,6.5592,114.35,114.31,8.7477]
[1743702028638,27.1338871,114.33,114.31,8.7477]
[1743702028835,27.1338871,114.33,114.3,8.7489]
[1743702029218,27.1338871,114.34,114.3,27.39854886]
[1743702029414,27.1338871,114.34,114.3,49.27074886]
[1743702029619,27.1338871,114.34,114.3,76.40463596]
[1743702029924,27.1338871,114.36,114.31,45.78353596]
[1743702030125,27.1338871,114.36,114.33,18.64964886]
[1743702030450,142.3681,114.39,114.33,26.74964886]
[1743702030743,27.1338871,114.36,114.33,26.74964886]
[1743702031043,27.1338871,114.36,114.34,8.7458]
[1743702031258,27.1338871,114.37,114.34,8.7458]
[1743702031457,27.1338871,114.38,114.34,30.6104]
[1743702032553,27.1338871,114.38,114.35,18.64964886]
[1743702032838,1.5419,114.44,114.38,18.64964886]
[1743702033156,136.0,114.45,114.38,45.78353596]
[1743702033157,6.5509,114.45,114.38,45.78353596]
[1743702033344,27.1338871,114.44,114.39,27.1338871]
[1743702033519,6.5509,114.45,114.4,45.78353596]
[1743702033724,27.1338871,114.42,114.37,38.7023]
[1743702033950,27.1338871,114.4,114.37,38.7023]
[1743702034332,27.1338871,114.41,114.37,38.7023]
[1743702034633,27.1338871,114.41,114.37,16.8435]
[1743702035632,27.1338871,114.41,114.37,8.7435]
[1743702035830,27.1338871,114.4,114.37,8.7435]
[1743702036148,8.7391,114.43,114.36,8.7441]
[1743702036149,43.38141955,114.39,114.36,8.7441]
[1743702036350,43.38141955,114.38,114.35,344.3648]
[1743702037133,43.38141955,114.39,114.35,344.3648]
[1743702037333,43.38141955,114.4,114.35,387.74621955]
[1743702037828,43.38141955,114.39,114.35,387.74621955]
[1743702038432,43.38141955,114.38,114.35,344.3648]
[1743702038930,43.38141955,114.39,114.35,344.3648]
[1743702039333,43.38141955,114.37,114.35,336.2648]
[1743702039527,43.38141955,114.37,114.35,327.52]
[1743702039930,43.38141955,114.36,114.35,327.52]
[1743702040149,43.38141955,114.36,114.35,336.265]
[1743702040337,43.38141955,114.36,114.35,327.52]
[1743702040539,43.38141955,114.36,114.34,8.7454]
[1743702040929,43.38141955,114.36,114.33,8.7466]
[1743702041138,43.38141955,114.35,114.33,8.7466]
[1743702041454,43.38141955,114.34,114.3,87.90373452]
[1743702041753,43.38141955,114.34,114.3,131.28515407]
[1743702042640,43.38141955,114.34,114.31,8.7477]
[1743702043444,42.9199805,114.34,114.31,8.7477]
[1743702043645,28.7432,114.38,114.31,52.12911955]
[1743702043951,43.38141955,114.35,114.31,8.7477]
[1743702044154,179.38141955,114.37,114.32,62.03106841]
[1743702044346,136.0,114.37,114.33,43.38141955]
[1743702044547,43.38141955,114.38,114.33,43.38141955]
[1743702045136,136.0,114.41,114.34,43.38141955]
[1743702045330,43.38141955,114.4,114.36,18.64964886]
[1743702045755,43.38141955,114.4,114.37,8.7435]
[1743702046836,43.38141955,114.4,114.37,30.6023]
[1743702048038,43.38141955,114.4,114.37,8.7435]
[1743702048361,43.38141955,114.39,114.37,8.7435]
[1743702049655,36.46104404,114.39,114.37,8.7435]
[1743702049859,36.46104404,114.39,114.36,8.7443]
[1743702050157,36.46104404,114.39,114.36,30.605]
[1743702050537,43.38141955,114.4,114.36,30.605]
[1743702051431,20.0,114.43,114.36,30.605]
[1743702051637,136.0,114.43,114.36,73.98641955]
[1743702051838,43.38141955,114.4,114.36,73.98641955]
[1743702052154,43.38141955,114.42,114.37,62.03106841]
[1743702053261,43.38141955,114.41,114.37,62.03106841]
[1743702053762,43.38141955,114.41,114.37,18.64964886]
[1743702054058,43.38141955,114.41,114.38,8.7427]
[1743702055259,43.38141955,114.4,114.38,8.7427]
[1743702055449,43.38141955,114.39,114.38,8.7427]
[1743702056046,43.38141955,114.4,114.38,8.7427]
[1743702056242,43.38141955,114.4,114.37,21.8574]
[1743702057156,43.38141955,114.41,114.37,21.8574]
[1743702057544,43.38141955,114.4,114.37,21.8574]
[1743702057743,27.10828625,114.4,114.37,21.8574]
[1743702058867,27.10828625,114.38,114.36,8.7443]
[1743702059051,27.10828625,114.39,114.36,8.7443]
[1743702059251,27.10828625,114.39,114.36,30.605]
[1743702059458,27.10828625,114.4,114.36,30.605]
[1743702059763,136.0,114.44,114.37,18.64964886]
[1743702059966,27.10828625,114.44,114.39,27.10828625]
[1743702060264,27.10828625,114.44,114.4,18.64964886]
[1743702060478,27.10828625,114.44,114.41,8.7404]
[1743702061147,144.7355,114.48,114.41,8.7404]
[1743702061478,27.10828625,114.47,114.42,45.75793511]
[1743702061851,27.10828625,114.46,114.42,18.64964886]
[1743702062367,29.54081144,114.46,114.42,18.64964886]
[1743702062555,29.54081144,114.46,114.43,8.7389]
[1743702063164,29.54081144,114.46,114.43,30.5863]
[1743702063464,2.43252519,114.46,114.43,30.5863]
[1743702063773,43.3255983,114.47,114.43,30.5863]
[1743702064472,156.0,114.49,114.43,30.5863]
[1743702064693,43.3255983,114.48,114.44,18.64964886]
[1743702064983,136.0,114.51,114.44,61.97524716]
[1743702065159,43.3255983,114.48,114.44,61.97524716]
[1743702065564,43.3255983,114.48,114.44,18.64964886]
[1743702066070,43.3255983,114.47,114.45,8.7374]
[1743702066266,8.7339,114.5,114.44,8.7382]
[1743702066470,43.3255983,114.46,114.44,8.7382]
[1743702066869,43.3255983,114.45,114.43,16.8186]
[1743702067076,43.3255983,114.45,114.43,8.08]
[1743702067276,43.3255983,114.45,114.42,18.64964886]
[1743702067972,43.3255983,114.45,114.43,8.7389]
[1743702068283,52.0613983,114.48,114.43,8.7389]
[1743702068479,43.3255983,114.45,114.42,8.7394]
[1743702068871,43.3255983,114.44,114.42,8.7394]
[1743702069078,8.73666016,114.47,114.42,8.7394]
[1743702069279,43.3255983,114.46,114.42,8.7394]
[1743702069478,2.43226016,114.47,114.42,8.7394]
[1743702069680,43.3255983,114.45,114.42,8.7394]
[1743702070184,43.3255983,114.44,114.42,8.7394]
[1743702070388,11.16856016,114.47,114.42,8.7394]
[1743702070389,43.3255983,114.45,114.42,8.7394]
[1743702070590,43.3255983,114.44,114.41,336.0401]
[1743702071175,6.0667,114.46,114.41,336.0401]
[1743702071361,43.3255983,114.44,114.41,336.0401]
[1743702072283,43.3255983,114.44,114.41,8.7401]
[1743702072891,43.3255983,114.45,114.41,8.7401]
[1743702073688,43.3255983,114.45,114.4,70.05524716]
[1743702073689,43.3255983,114.43,114.4,8.7409]
[1743702073871,43.3255983,114.46,114.4,30.594]
[1743702074070,43.3255983,114.45,114.4,30.594]
[1743702074365,43.3255983,114.44,114.4,8.7409]
[1743702075086,43.3255983,114.43,114.4,8.7409]
[1743702075271,43.3255983,114.42,114.39,8.7418]
[1743702075472,43.3255983,114.42,114.38,10.2436]
[1743702075898,43.3255983,114.41,114.38,10.2436]
[1743702076284,43.3255983,114.42,114.38,10.2436]
[1743702077072,136.0,114.43,114.4,43.3255983]
[1743702078286,179.3255983,114.43,114.39,8.7417]
[1743702078690,136.0,114.43,114.39,52.0672983]
[1743702078885,43.3255983,114.44,114.39,52.0672983]
[1743702079705,43.3255983,114.43,114.39,8.7417]
[1743702080280,43.3255983,114.44,114.39,52.0672983]
[1743702081589,162.554,114.47,114.41,43.3255983]
[1743702081786,6.554,114.47,114.42,43.3255983]
[1743702081986,1.504,114.48,114.43,43.3255983]
[1743702081987,43.3255983,114.48,114.43,43.3255983]
[1743702082388,43.3255983,114.49,114.44,43.3255983]
[1743702082800,185.8123983,114.5,114.46,8.7366]
[1743702083200,2.43477306,114.48,114.46,52.0621983]
[1743702083403,2.43477306,114.48,114.47,43.3255983]
[1743702083908,2.43477306,114.48,114.47,27.05491349]
[1743702084091,2.43477306,114.48,114.47,45.70456235]
[1743702084491,27.05491349,114.52,114.47,45.70456235]
[1743702085105,27.05491349,114.52,114.48,8.7351]
[1743702085708,43.29019999,114.51,114.48,8.7351]
[1743702086313,43.29019999,114.5,114.47,8.7356]
[1743702086497,43.29019999,114.51,114.47,8.7356]
[1743702087717,43.29019999,114.5,114.47,8.7356]
[1743702088807,144.7321,114.52,114.47,8.7356]
[1743702089012,43.29019999,114.5,114.47,8.7356]
[1743702089398,43.29019999,114.51,114.47,8.7356]
[1743702089811,136.0,114.52,114.47,52.02579999]
[1743702090017,179.29019999,114.52,114.47,52.02579999]
[1743702090219,43.29019999,114.51,114.47,8.7356]
[1743702090514,136.0,114.52,114.47,52.02579999]
[1743702090720,136.0,114.52,114.48,43.29019999]
[1743702091015,179.29019999,114.52,114.47,73.86549999]
[1743702091396,179.29019999,114.52,114.47,30.5753]
[1743702091604,179.29019999,114.52,114.47,73.86549999]
[1743702092293,136.0,114.55,114.49,43.29019999]
[1743702092515,43.29019999,114.52,114.48,43.29019999]
[1743702092724,43.29019999,114.52,114.47,38.6953]
[1743702092907,136.0,114.53,114.47,81.98549999]
[1743702093223,43.29019999,114.52,114.47,81.98549999]
[1743702093515,43.29019999,114.51,114.47,81.98549999]
[1743702093697,43.29019999,114.51,114.47,38.6953]
[1743702095402,43.29019999,114.51,114.47,16.8556]
[1743702096316,43.29019999,114.49,114.47,8.7356]
[1743702096696,43.29019999,114.5,114.47,8.7356]
[1743702097116,136.0,114.52,114.47,8.7356]
[1743702097509,43.29019999,114.5,114.47,8.7356]
[1743702097711,43.29019999,114.5,114.46,8.7366]
[1743702098419,43.29019999,114.5,114.46,30.5782]
[1743702100120,136.0,114.52,114.47,43.29019999]
[1743702100416,136.0,114.52,114.48,43.29019999]
[1743702101820,136.0,114.52,114.49,30.5702]
[1743702102521,142.1139,114.54,114.49,73.86039999]
[1743702102820,185.40409999,114.54,114.49,73.86039999]
[1743702103022,43.29019999,114.52,114.49,30.5702]
[1743702103323,43.29019999,114.53,114.49,30.5702]
[1743702103824,43.29019999,114.52,114.47,73.86479999]
[1743702104017,43.29019999,114.53,114.49,43.29019999]
[1743702104401,49.40409999,114.54,114.49,43.29019999]
[1743702105220,43.29019999,114.53,114.48,43.29019999]
[1743702105699,27.04810936,114.53,114.5,30.5676]
[1743702105904,169.16200936,114.54,114.5,30.5676]
[1743702106226,163.04810936,114.54,114.5,57.61570936]
[1743702107134,163.04810936,114.54,114.5,30.5676]
[1743702108626,136.0,114.58,114.52,27.04810936]
[1743702108925,27.04810936,114.59,114.54,27.04810936]
[1743702109309,171.10860936,114.6,114.55,27.04810936]
[1743702109624,26.3865,114.63,114.57,27.04810936]
[1743702109820,163.04810936,114.62,114.57,27.04810936]
[1743702110026,27.04810936,114.61,114.58,30.5463]
[1743702110735,163.04810936,114.62,114.58,30.5463]
[1743702111311,27.04810936,114.61,114.58,30.5463]
[1743702111626,136.0,114.69,114.61,1.6228]
[1743702111812,27.04810936,114.67,114.62,27.04810936]
[1743702112007,163.04810936,114.68,114.63,27.04810936]
[1743702112202,136.0,114.68,114.64,27.04810936]
[1743702112410,27.04810936,114.69,114.62,30.5356]
[1743702112623,27.04810936,114.68,114.63,27.04810936]
[1743702112921,136.0,114.69,114.62,57.58370936]
[1743702113124,27.04810936,114.66,114.62,8.7244]
[1743702113305,27.04810936,114.65,114.62,8.7244]
[1743702113505,136.0,114.67,114.62,8.7244]
[1743702113506,136.0,114.67,114.62,35.77250936]
[1743702113711,136.0,114.67,114.62,57.58370936]
[1743702113928,136.0,114.67,114.64,8.7229]
[1743702114721,27.04810936,114.68,114.64,30.5302]
[1743702115508,27.04810936,114.68,114.64,57.57830936]
[1743702116314,136.0,114.71,114.64,30.5302]
[1743702116635,27.04810936,114.68,114.64,57.57830936]
[1743702116823,27.04810936,114.67,114.64,30.5302]
[1743702117022,70.15197093,114.72,114.64,30.5302]
[1743702117023,27.04810936,114.66,114.64,8.7229]
[1743702117328,27.04810936,114.67,114.64,8.7229]
[1743702117717,156.0,114.7,114.64,8.7229]
[1743702117923,136.0,114.69,114.64,8.7229]
[1743702118222,27.04810936,114.67,114.64,8.7229]
[1743702119037,163.04810936,114.68,114.64,30.5302]
[1743702119233,27.04810936,114.67,114.64,8.7229]
[1743702119434,27.04810936,114.66,114.64,8.7229]
[1743702119629,27.04810936,114.66,114.63,8.7237]
[1743702119838,136.0,114.68,114.61,8.7252]
[1743702119839,27.04810936,114.64,114.61,8.7252]
[1743702120437,27.04810936,114.62,114.6,326.92]
[1743702120634,27.04810936,114.61,114.6,8.726]
[1743702120833,27.04810936,114.62,114.6,8.726]
[1743702121039,136.0,114.65,114.59,16.8264]
[1743702121230,27.04810936,114.61,114.59,8.7264]
[1743702121634,27.04810936,114.62,114.59,8.7264]
[1743702121947,27.04810936,114.63,114.59,30.5433]
[1743702122521,27.04810936,114.61,114.59,8.7264]
[1743702123119,27.04810936,114.62,114.59,8.7264]
[1743702123323,27.04810936,114.61,114.58,8.7272]
[1743702123524,27.04810936,114.62,114.58,8.7272]
[1743702123745,27.04810936,114.62,114.58,35.77530936]
[1743702123941,27.04810936,114.61,114.58,8.7272]
[1743702124145,27.04810936,114.61,114.57,57.59640936]
[1743702124640,27.04810936,114.62,114.57,57.59640936]
[1743702125423,136.0,114.63,114.58,27.04810936]
[1743702125626,27.04810936,114.62,114.58,27.04810936]
[1743702125955,27.04810936,114.63,114.59,27.04810936]
[1743702126136,163.04810936,114.64,114.6,8.726]
[1743702126337,27.04810936,114.64,114.6,8.726]
[1743702127053,27.04810936,114.65,114.6,65.70910936]
[1743702127347,27.04810936,114.66,114.62,27.04810936]
[1743702127924,136.0,114.68,114.63,27.04810936]
[1743702128129,6.472,114.69,114.64,38.6502]
[1743702128343,27.04810936,114.67,114.64,16.8429]
[1743702128938,27.04810936,114.69,114.64,43.89100936]
[1743702129133,27.04810936,114.69,114.65,27.04810936]
[1743702129825,136.0,114.71,114.65,27.04810936]
[1743702130033,27.04810936,114.68,114.64,30.5302]
[1743702130557,27.04810936,114.69,114.64,65.69830936]
[1743702130738,27.04810936,114.69,114.65,27.04810936]
[1743702131329,27.04810936,114.69,114.64,65.69830936]
[1743702131561,27.04810936,114.68,114.64,65.69830936]
[1743702131735,27.04810936,114.68,114.64,57.57830936]
[1743702132049,27.04810936,114.68,114.64,38.6902]
[1743702132253,27.04810936,114.69,114.64,65.73830936]
[1743702132444,27.04810936,114.7,114.65,27.04810936]
[1743702132838,27.04810936,114.69,114.65,27.04810936]
[1743702133040,136.0,114.71,114.65,27.04810936]
[1743702133241,27.04810936,114.69,114.65,27.04810936]
[1743702133437,27.04810936,114.69,114.64,65.73830936]
[1743702133767,27.04810936,114.68,114.64,43.93100936]
[1743702134172,27.04810936,114.69,114.64,65.73830936]
[1743702134672,27.04810936,114.68,114.64,16.8829]
[1743702135556,27.04810936,114.68,114.64,43.93100936]
[1743702136471,27.04810936,114.68,114.64,8.7229]
[1743702136765,27.04810936,114.66,114.64,8.7229]
[1743702137670,27.04810936,114.67,114.64,8.7229]
[1743702138171,8.7229,114.64,114.56,1.529]
[1743702138380,27.04810936,114.6,114.56,59.12870936]
[1743702138549,27.04810936,114.6,114.56,32.0806]
[1743702138850,27.04810936,114.61,114.56,59.12870936]